fUSD/lending_fUSD_20260228
["ID","MTS","AMOUNT","RATE_DAILY","PERIOD"]
[406857788,1772241044057,-266.65,0.00017978,2]
[406857789,1772241044068,-503.03652017,0.00017982,2]
[406857790,1772241044078,-1350.98443311,0.0001799,2]
[406857791,1772241044087,-151.0,0.00017997,2]
[406857792,1772241044098,-1720.14982419,0.00017999,2]
[406857793,1772241044107,-348.8120897,0.00017999,2]
[406857794,1772241044116,-300.0,0.00017999,2]
[406857795,1772241044124,-286.61762734,0.00017999,2]
[406857796,1772241044133,-1107.76913409,0.00017999,5]
[406857797,1772241044142,-300.0,0.00017999,2]
[406857798,1772241044153,-750.0,0.00017999,2]
[406857799,1772241044162,-750.0,0.00017999,2]
[406857800,1772241044171,-750.0,0.00017999,2]
[406857801,1772241044180,-750.0,0.00017999,2]
[406857802,1772241044188,-750.0,0.00017999,2]
[406857803,1772241044197,-750.0,0.00017999,2]
[406857804,1772241044206,-750.0,0.00017999,2]
[406857805,1772241044215,-750.0,0.00017999,2]
[406857806,1772241044223,-750.0,0.00017999,2]
[406857807,1772241044232,-750.0,0.00017999,2]
[406857808,1772241044241,-750.0,0.00017999,2]
[406857809,1772241044250,-750.0,0.00017999,2]
[406857810,1772241044259,-500.0,0.00017999,2]
[406857811,1772241044268,-500.0,0.00017999,2]
[406857812,1772241044277,-500.0,0.00017999,2]
[406857813,1772241044286,-500.0,0.00017999,2]
[406857814,1772241044295,-313.34247632,0.00017999,2]
[406857815,1772241044304,-300.0,0.00017999,2]
[406857816,1772241044313,-500.0,0.00017999,2]
[406857817,1772241044322,-500.0,0.00017999,2]
[406857818,1772241044331,-500.0,0.00017999,2]
[406857819,1772241044339,-210.48,0.00017999,2]
[406857820,1772241044348,-500.0,0.00017999,2]
[406857821,1772241044357,-500.0,0.00017999,2]
[406857822,1772241044367,-500.0,0.00017999,2]
[406857823,1772241044376,-500.0,0.00017999,2]
[406857824,1772241044385,-500.0,0.00017999,2]
[406857825,1772241044395,-500.0,0.00017999,2]
[406857826,1772241044403,-500.0,0.00017999,2]
[406857827,1772241044412,-500.0,0.00017999,2]
[406857828,1772241044422,-500.0,0.00017999,2]
[406857829,1772241044431,-500.0,0.00017999,2]
[406857830,1772241044440,-500.0,0.00017999,2]
[406857831,1772241044449,-522.57762627,0.00017999,2]
[406857832,1772241044458,-500.0,0.00017999,2]
[406857833,1772241044467,-500.0,0.00017999,2]
[406857834,1772241044475,-500.0,0.00017999,2]
[406857835,1772241044484,-500.0,0.00017999,2]
[406857836,1772241044493,-500.0,0.00017999,2]
[406857837,1772241044502,-500.0,0.00017999,2]
[406857838,1772241044511,-500.0,0.00017999,2]
[406857839,1772241044522,-500.0,0.00017999,2]
[406857840,1772241044531,-500.0,0.00017999,2]
[406857841,1772241044540,-500.0,0.00017999,2]
[406857842,1772241044549,-500.0,0.00017999,2]
[406857843,1772241044559,-500.0,0.00017999,2]
[406857844,1772241044569,-271.27695411,0.00017999,2]
[406857845,1772241044578,-829.56,0.00017999,2]
[406857846,1772241044587,-829.56,0.00017999,2]
[406857847,1772241044596,-829.56,0.00017999,2]
[406857848,1772241044605,-829.56,0.00017999,2]
[406857849,1772241044614,-829.56,0.00017999,2]
[406857850,1772241044623,-829.56,0.00017999,2]
[406857851,1772241044632,-829.56,0.00017999,2]
[406857852,1772241044641,-829.56,0.00017999,2]
[406857853,1772241044650,-829.56,0.00017999,2]
[406857854,1772241044659,-829.56,0.00017999,2]
[406857855,1772241044668,-829.56,0.00017999,2]
[406857856,1772241044677,-829.56,0.00017999,2]
[406857857,1772241044686,-829.56,0.00017999,2]
[406857858,1772241044695,-829.63282882,0.00017999,2]
[406857859,1772241044704,-500.0,0.00017999,2]
[406857860,1772241044713,-500.0,0.00017999,2]
[406857861,1772241044721,-500.0,0.00017999,2]
[406857862,1772241044730,-500.0,0.00017999,2]
[406857863,1772241044739,-500.0,0.00017999,2]
[406857864,1772241044748,-500.0,0.00017999,2]
[406857865,1772241044757,-500.0,0.00017999,2]
[406857866,1772241044766,-500.0,0.00017999,2]
[406857867,1772241044775,-200.46401906,0.00017999,2]
[406857868,1772241044784,-500.0,0.00017999,2]
[406857869,1772241044793,-500.0,0.00017999,2]
[406857870,1772241044801,-500.0,0.00017999,2]
[406857871,1772241044810,-500.0,0.00017999,2]
[406857872,1772241044819,-500.0,0.00017999,2]
[406857873,1772241044828,-500.0,0.00017999,2]
[406857874,1772241044837,-500.0,0.00017999,2]
[406857875,1772241044846,-500.0,0.00017999,2]
[406857876,1772241044855,-500.0,0.00017999,2]
[406857877,1772241044864,-173.81708552,0.00017999,2]
[406857878,1772241044874,-500.0,0.00017999,2]
[406857879,1772241044883,-488.82378682,0.00017999,2]
[406857880,1772241044892,-194.04859862,0.00017999,2]
[406857881,1772241044901,-2888948.60155496,0.00018,2]
[406857882,1772241044910,-2018.112,0.00018,2]
[406857883,1772241044919,-320.00674952,0.00018,2]
[406857884,1772241044928,-86074.5162996,0.00018,2]
[406857885,1772241044937,-150.0,0.00018,7]
[406857886,1772241044946,-16781.4117479,0.00018,2]
[406857887,1772241044955,-200.0,0.00018,2]
[406857888,1772241044964,-2504199.7921127,0.00018,2]
[406857889,1772241044983,-2474.53704796,0.00018,2]
[406857890,1772241044994,-788.45865194,0.00018,2]
[406857891,1772241045018,-1058.577,0.00014989,2]
[406857892,1772241045032,-350.79139435,0.00014989,2]
[406857893,1772241045041,-902.31375505,0.00018,2]
[406857894,1772241045052,-660.85425,0.00018,2]
[406857895,1772241045063,-887.0776005,0.00018,2]
[406857896,1772241045086,-410.01348827,0.00018,2]
[406857897,1772241045412,-1409.36839435,0.000179,2]
[406857898,1772241045424,-6584.30660201,0.00018,2]
[406857899,1772241045435,-973.00923496,0.00018,2]
[406857900,1772241045520,-3935.25037881,0.00018,2]
[406857901,1772241045736,-2318.58522198,0.00018,2]
[406857923,1772241396745,396.79,4.113e-05,2]
[406857924,1772241397190,396.79,4.29e-05,2]
[406857925,1772241397394,396.79,4.468e-05,2]
[406857926,1772241397594,396.79,4.645e-05,2]
[406857927,1772241397817,396.79,4.822e-05,2]
[406857928,1772241398126,396.79,4.999e-05,2]
[406857929,1772241398334,396.79,5.176e-05,2]
[406857930,1772241398536,396.79,5.353e-05,2]
[406857931,1772241398756,396.79,5.53e-05,2]
[406857932,1772241399194,396.79,5.707e-05,2]
[406857933,1772241399389,396.79,5.885e-05,2]
[406857934,1772241399592,396.79,6.062e-05,2]
[406857935,1772241399788,396.79,6.239e-05,2]
[406857936,1772241400205,396.79,6.416e-05,2]
[406857937,1772241400419,396.79,6.593e-05,2]
[406857938,1772241400611,396.79,6.77e-05,2]
[406857939,1772241400812,396.79,6.947e-05,2]
[406857940,1772241401018,396.79,7.124e-05,2]
[406857941,1772241552763,1852.42,7.073e-05,2]
[406857942,1772241580043,500.0,7.004e-05,2]
[406857943,1772241668669,-396.79,7.302e-05,2]
[406857944,1772241668697,-212.0,7.302e-05,2]
[406857945,1772241668725,-250.0,7.326e-05,2]
[406857946,1772241668753,-701.67367054,7.343e-05,2]
[406857947,1772241668783,-5000.0,7.351e-05,2]
[406857948,1772241668810,-250.0,7.392e-05,2]
[406857949,1772241668836,-300.0,7.398e-05,2]
[406857950,1772241668862,-300.0,7.399e-05,2]
[406857951,1772241668888,-1200.0,7.399e-05,2]
[406857952,1772241668913,-150.0,7.399e-05,2]
[406857953,1772241668941,-184.23655799,7.4e-05,2]
[406857954,1772241668967,-197.47,7.4e-05,2]
[406857955,1772241668998,-1514.2524656,7.4e-05,2]
[406857956,1772241669025,-2937.46263575,7.4e-05,2]
[406857957,1772241669056,-4167.35737667,7.4e-05,2]
[406857958,1772241669084,-7606.84579126,7.4e-05,2]
[406857959,1772241669110,-177.26749081,7.433e-05,2]
[406857960,1772241669141,-500.0,7.433e-05,2]
[406857961,1772241669168,-164.61479743,7.433e-05,2]
[406857962,1772241669198,-500.0,7.433e-05,2]
[406857963,1772241669233,-500.0,7.433e-05,2]
[406857964,1772241669265,-500.0,7.433e-05,2]
[406857965,1772241669299,-500.0,7.433e-05,2]
[406857966,1772241669331,-500.0,7.433e-05,2]
[406857967,1772241669361,-500.0,7.433e-05,2]
[406857968,1772241669390,-500.0,7.433e-05,2]
[406857969,1772241669420,-500.0,7.433e-05,2]
[406857970,1772241669450,-500.0,7.433e-05,2]
[406857971,1772241669481,-500.0,7.433e-05,2]
[406857972,1772241669513,-500.0,7.433e-05,2]
[406857973,1772241669548,-500.0,7.433e-05,2]
[406857974,1772241669579,-500.0,7.433e-05,2]
[406857975,1772241669609,-500.0,7.433e-05,2]
[406857976,1772241669638,-500.0,7.433e-05,2]
[406857977,1772241669667,-500.0,7.433e-05,2]
[406857978,1772241669695,-500.0,7.433e-05,2]
[406857979,1772241669724,-500.0,7.433e-05,2]
[406857980,1772241669756,-500.0,7.433e-05,2]
[406857981,1772241669784,-500.0,7.433e-05,2]
[406857982,1772241669813,-500.0,7.433e-05,2]
[406857983,1772241669841,-500.0,7.433e-05,2]
[406857984,1772241669870,-500.0,7.433e-05,2]
[406857985,1772241669898,-419.04585087,7.433e-05,2]
[406857986,1772241669926,-500.0,7.433e-05,2]
[406857987,1772241669955,-500.0,7.433e-05,2]
[406857988,1772241669985,-500.0,7.433e-05,2]
[406857989,1772241670017,-500.0,7.433e-05,2]
[406857990,1772241670047,-500.0,7.433e-05,2]
[406857991,1772241670076,-500.0,7.433e-05,2]
[406857992,1772241670104,-500.0,7.433e-05,2]
[406857993,1772241670132,-500.0,7.433e-05,2]
[406857994,1772241670161,-500.0,7.433e-05,2]
[406857995,1772241670190,-500.0,7.433e-05,2]
[406857996,1772241670409,-500.0,7.433e-05,2]
[406857997,1772241670445,-500.0,7.433e-05,2]
[406857998,1772241670476,-500.0,7.433e-05,2]
[406857999,1772241670507,-500.0,7.433e-05,2]
[406858000,1772241670537,-500.0,7.433e-05,2]
[406858001,1772241670566,-500.0,7.433e-05,2]
[406858002,1772241670596,-500.0,7.433e-05,2]
[406858003,1772241670627,-500.0,7.433e-05,2]
[406858004,1772241670658,-500.0,7.433e-05,2]
[406858005,1772241670689,-500.0,7.433e-05,2]
[406858006,1772241670718,-35170.98336308,7.434e-05,2]
[406858007,1772241806059,164.68,6.923e-05,2]
[406858009,1772242027556,-1200.0,6.8e-05,2]
[406858010,1772242029556,2400.0,6.9e-05,2]
[406858011,1772242031643,3600.0,7e-05,2]
[406858021,1772242231799,-2248.01,7.286e-05,2]
[406858022,1772242231810,-231.069,7.286e-05,2]
[406858023,1772242231820,-212.0,7.286e-05,2]
[406858024,1772242231830,-300.0,7.314e-05,2]
[406858025,1772242231840,-1200.0,7.314e-05,2]
[406858026,1772242231850,-300.0,7.314e-05,2]
[406858027,1772242231864,-30403.0,7.315e-05,2]
[406858028,1772242231875,-151.0,7.331e-05,2]
[406858029,1772242231884,-150.0,7.332e-05,2]
[406858030,1772242231894,-1001.13389285,7.332e-05,2]
[406858031,1772242231904,-500.0,7.333e-05,2]
[406858032,1772242231914,-500.0,7.333e-05,2]
[406858033,1772242231924,-241.90458509,7.333e-05,2]
[406858034,1772242231934,-500.0,7.333e-05,2]
[406858035,1772242231944,-500.0,7.333e-05,2]
[406858036,1772242231954,-57933.6451536,7.334e-05,2]
[406858037,1772242231967,-94836.01770016,7.334e-05,2]
[406858038,1772242231978,-1254.41808677,7.334e-05,2]
[406858039,1772242231990,-2109.64631498,7.334e-05,2]
[406858040,1772242232002,-953.94191315,7.334e-05,2]
[406858041,1772242232018,-572.84682148,7.334e-05,2]
[406858042,1772242232030,-251.98609538,7.334e-05,2]
[406858059,1772242237728,-27131.28553281,7.334e-05,2]
[406858060,1772242237743,-304.0,7.334e-05,2]
[406858061,1772242237755,-33342.08,7.334e-05,2]
[406858062,1772242237976,-1781310.13238167,7.334e-05,2]
[406858063,1772242237987,-3661.3989268,7.428e-05,2]
[406858064,1772242237998,-500.0,7.47e-05,2]
[406858065,1772242238008,-396.79,7.479e-05,2]
[406858068,1772242238018,-1107.76913409,7.57e-05,2]
[406858069,1772242238027,-150.99,7.57e-05,2]
[406858072,1772242238037,-9999.99,7.57e-05,2]
[406858074,1772242238051,-299.99,7.57e-05,2]
[406858076,1772242238062,-999.99,7.57e-05,2]
[406858078,1772242238072,-9999.99,7.57e-05,2]
[406858080,1772242238081,-250.0,8.015e-05,2]
[406858082,1772242238091,-250.0,8.015e-05,2]
[406858084,1772242238101,-1531.65,8.015e-05,2]
[406858086,1772242238111,-5000.0,8.015e-05,2]
[406858089,1772242238120,-251.91062312,8.015e-05,2]
[406858092,1772242238130,-1147.35799639,8.015e-05,2]
[406858095,1772242238140,-420.0,8.045e-05,2]
[406858098,1772242238149,-1680.0,8.045e-05,2]
[406858101,1772242238159,-414.0,8.045e-05,2]
[406858104,1772242238168,-255.0,8.065e-05,2]
[406858108,1772242238178,-157.965047,8.219e-05,2]
[406858111,1772242238188,-3661.3989268,8.292e-05,2]
[406858114,1772242238198,-532.01941831,8.673e-05,2]
[406858117,1772242238208,-502.07392204,8.673e-05,2]
[406858119,1772242238218,-344.08056128,8.673e-05,2]
[406858121,1772242238228,-500.0,8.673e-05,2]
[406858122,1772242238239,-500.0,8.673e-05,2]
[406858125,1772242238255,-606.66674669,8.673e-05,2]
[406858126,1772242238264,-500.0,8.673e-05,2]
[406858129,1772242238275,-1000.0,8.802e-05,2]
[406858130,1772242238285,-587.0,8.85e-05,2]
[406858131,1772242238295,-2351.0,8.85e-05,2]
[406858132,1772242238304,-433.0,8.872e-05,2]
[406858133,1772242238314,-500.0,9.054e-05,2]
[406858134,1772242238324,-5063.92,9.054e-05,2]
[406858135,1772242238334,-3661.3989268,9.155e-05,2]
[406858136,1772242238344,-22324.98,9.205e-05,2]
[406858137,1772242238356,-1000.0,9.221e-05,2]
[406858138,1772242238366,-1000.0,9.221e-05,2]
[406858139,1772242238375,-1000.0,9.221e-05,2]
[406858140,1772242238388,-186.781262,9.277e-05,2]
[406858141,1772242238397,-500.0,9.328e-05,2]
[406858142,1772242238407,-500.0,9.602e-05,2]
[406858143,1772242238418,-250.0,9.627e-05,2]
[406858144,1772242238427,-823.0,9.735e-05,2]
[406858145,1772242238437,-3292.0,9.735e-05,2]
[406858146,1772242238447,-736.0,9.759e-05,2]
[406858147,1772242238458,-1500.0,9.768e-05,2]
[406858148,1772242238467,-1500.0,9.768e-05,2]
[406858149,1772242238478,-1500.0,9.768e-05,2]
[406858150,1772242238487,-500.0,9.876e-05,2]
[406858151,1772242238498,-1000.0,9.902e-05,2]
[406858152,1772242238507,-926.91238002,0.0001,2]
[406858153,1772242238517,-151.0,0.0001,2]
[406858154,1772242238527,-151.0,0.0001,2]
[406858155,1772242238537,-151.0,0.0001,2]
[406858156,1772242238547,-151.0,0.0001,2]
[406858157,1772242238556,-151.0,0.0001,2]
[406858158,1772242238565,-151.0,0.0001,2]
[406858159,1772242238575,-151.0,0.0001,2]
[406858160,1772242238585,-151.0,0.0001,2]
[406858161,1772242238595,-151.0,0.0001,2]
[406858162,1772242238604,-151.0,0.0001,2]
[406858163,1772242238614,-151.0,0.0001,2]
[406858164,1772242238623,-151.0,0.0001,2]
[406858165,1772242238633,-151.0,0.0001,2]
[406858166,1772242238643,-151.0,0.0001,2]
[406858167,1772242238654,-151.0,0.0001,2]
[406858168,1772242238663,-151.0,0.0001,2]
[406858169,1772242238673,-151.0,0.0001,2]
[406858170,1772242238683,-151.0,0.0001,2]
[406858171,1772242238692,-151.0,0.0001,2]
[406858172,1772242238701,-151.0,0.0001,2]
[406858173,1772242238712,-151.0,0.0001,2]
[406858174,1772242238721,-151.0,0.0001,2]
[406858175,1772242238731,-151.0,0.0001,2]
[406858176,1772242238741,-151.0,0.0001,2]
[406858177,1772242238751,-151.0,0.0001,2]
[406858178,1772242238761,-151.0,0.0001,2]
[406858179,1772242238772,-151.0,0.0001,2]
[406858180,1772242238782,-151.0,0.0001,2]
[406858181,1772242238792,-151.0,0.0001,2]
[406858182,1772242238802,-151.0,0.0001,2]
[406858183,1772242238812,-151.0,0.0001,2]
[406858184,1772242238821,-151.0,0.0001,2]
[406858185,1772242238831,-500.0,0.0001,2]
[406858186,1772242238840,-500.0,0.0001,2]
[406858187,1772242238850,-500.0,0.0001,2]
[406858188,1772242238859,-500.0,0.0001,2]
[406858189,1772242238870,-500.0,0.0001,2]
[406858190,1772242238879,-500.0,0.0001,2]
[406858191,1772242238888,-500.0,0.0001,2]
[406858192,1772242238898,-500.0,0.0001,2]
[406858193,1772242238907,-500.0,0.0001,2]
[406858194,1772242238916,-500.0,0.0001,2]
[406858195,1772242238925,-500.0,0.0001,2]
[406858196,1772242238936,-500.0,0.0001,2]
[406858197,1772242238945,-1352.03500146,0.0001,2]
[406858198,1772242238956,-3661.3989268,0.00010019,2]
[406858199,1772242238966,-4000.0,0.00010027,2]
[406858200,1772242238976,-500.0,0.0001015,2]
[406858201,1772242238985,-151.0,0.00010275,2]
[406858202,1772242238994,-4000.0,0.00010278,2]
[406858203,1772242239004,-500.0,0.000103,2]
[406858204,1772242239014,-500.0,0.000103,2]
[406858205,1772242239024,-1000.0,0.000103,2]
[406858206,1772242239034,-500.0,0.000103,2]
[406858207,1772242239043,-500.0,0.000103,2]
[406858208,1772242239054,-500.0,0.000103,2]
[406858209,1772242239069,-500.0,0.000103,2]
[406858210,1772242239088,-500.0,0.000103,2]
[406858211,1772242239098,-500.0,0.000103,2]
[406858212,1772242239107,-500.0,0.000103,2]
[406858213,1772242239117,-500.0,0.000103,2]
[406858214,1772242239128,-500.0,0.000103,2]
[406858215,1772242239138,-500.0,0.000103,2]
[406858216,1772242239147,-500.0,0.000103,2]
[406858217,1772242239157,-500.0,0.000103,2]
[406858218,1772242239166,-500.0,0.000103,2]
[406858219,1772242239175,-500.0,0.000103,2]
[406858220,1772242239185,-500.0,0.000103,2]
[406858221,1772242239195,-633.85983574,0.000103,2]
[406858222,1772242239205,-500.0,0.000103,2]
[406858223,1772242239215,-500.0,0.000103,2]
[406858224,1772242239224,-500.0,0.000103,2]
[406858225,1772242239233,-500.0,0.000103,2]
[406858226,1772242239243,-500.0,0.000103,2]
[406858227,1772242239253,-500.0,0.000103,2]
[406858228,1772242239263,-500.0,0.000103,2]
[406858229,1772242239273,-500.0,0.000103,2]
[406858230,1772242239283,-500.0,0.000103,2]
[406858231,1772242239293,-500.0,0.000103,2]
[406858232,1772242239303,-500.0,0.000103,2]
[406858233,1772242239313,-500.0,0.000103,2]
[406858234,1772242239322,-500.0,0.000103,2]
[406858235,1772242239332,-500.0,0.000103,2]
[406858236,1772242239341,-1000.0,0.000103,2]
[406858237,1772242239355,-800.0,0.000103,2]
[406858238,1772242239365,-800.0,0.000103,2]
[406858239,1772242239375,-800.0,0.000103,2]
[406858240,1772242239387,-500.0,0.000103,2]
[406858241,1772242239396,-800.0,0.000103,2]
[406858242,1772242239407,-500.0,0.000103,2]
[406858243,1772242239416,-800.0,0.000103,2]
[406858244,1772242239426,-500.0,0.000103,2]
[406858245,1772242239437,-800.0,0.000103,2]
[406858246,1772242239446,-738.63007769,0.000103,2]
[406858247,1772242239458,-800.0,0.000103,2]
[406858248,1772242239467,-800.0,0.000103,2]
[406858249,1772242239477,-800.0,0.000103,2]
[406858250,1772242239487,-800.0,0.000103,2]
[406858251,1772242239498,-800.0,0.000103,2]
[406858252,1772242239508,-800.0,0.000103,2]
[406858253,1772242239518,-800.0,0.000103,2]
[406858254,1772242239539,-944.22163589,0.000103,2]
[406858255,1772242239552,-500.0,0.000103,2]
[406858256,1772242239562,-727.93200895,0.000103,2]
[406858257,1772242239571,-2000.0,0.00010316,2]
[406858258,1772242239581,-1500.0,0.00010316,2]
[406858259,1772242239590,-2000.0,0.00010316,2]
[406858260,1772242239600,-230.89,0.00010337,2]
[406858261,1772242239610,-500.0,0.00010424,2]
[406858262,1772242239619,-4000.0,0.00010529,2]
[406858263,1772242239629,-430.47562281,0.00010698,2]
[406858264,1772242239638,-1152.0,0.00010709,2]
[406858265,1772242239648,-4609.0,0.00010709,2]
[406858266,1772242239658,-1252.0,0.00010734,2]
[406858267,1772242239667,-4000.0,0.00010779,2]
[406858268,1772242239677,-2615.41784141,0.00010864,2]
[406858269,1772242239686,-2062.33775238,0.00010864,2]
[406858270,1772242239696,-500.0,0.00010959,2]
[406858271,1772242239706,-166.66,0.00010959,2]
[406858272,1772242239715,-184.7,0.00010959,2]
[406858273,1772242239726,-1000.0,0.00011002,2]
[406858274,1772242239735,-4000.0,0.0001103,2]
[406858275,1772242239745,-166.66,0.00011068,2]
[406858276,1772242239755,-32881.3082076,0.00011099,2]
[406858277,1772242239765,-32881.30820754,0.00011099,2]
[406858278,1772242239774,-32881.30820754,0.00011099,2]
[406858279,1772242239784,-32881.30820754,0.00011099,2]
[406858280,1772242239794,-166.66,0.00011178,2]
[406858281,1772242239804,-166.66,0.00011288,2]
[406858283,1772242239814,-166.66,0.00011397,2]
[406858285,1772242239823,-195.363008,0.00011483,2]
[406858286,1772242239833,-166.66,0.00011507,2]
[406858287,1772242239843,-1528.91,0.00011507,2]
[406858288,1772242239852,-1886.379401,0.00011597,2]
[406858289,1772242239862,-224.137515,0.00011597,2]
[406858290,1772242239872,-76199.0,0.000116,2]
[406858291,1772242239881,-1613.0,0.00011779,2]
[406858292,1772242239892,-5605.0,0.00011779,2]
[406858293,1772242239902,-232.0,0.00011812,2]
[406858294,1772242239912,-5532.0,0.00012,3]
[406858295,1772242239921,-32881.30820754,0.0001205,2]
[406858296,1772242239931,-500.0,0.0001207,2]
[406858297,1772242239941,-500.0,0.0001207,2]
[406858298,1772242239951,-500.0,0.0001207,2]
[406858299,1772242239962,-500.0,0.0001207,2]
[406858300,1772242239972,-500.0,0.0001207,2]
[406858301,1772242239981,-500.0,0.0001207,2]
[406858302,1772242239992,-500.0,0.0001207,2]
[406858303,1772242240002,-500.0,0.0001207,2]
[406858304,1772242240011,-500.0,0.0001207,2]
[406858305,1772242240020,-500.0,0.0001207,2]
[406858306,1772242240030,-670.0,0.0001207,2]
[406858307,1772242240040,-856.03124545,0.0001207,2]
[406858308,1772242240050,-500.0,0.0001207,2]
[406858309,1772242240059,-500.0,0.0001207,2]
[406858310,1772242240069,-500.0,0.0001207,2]
[406858311,1772242240080,-500.0,0.0001207,2]
[406858312,1772242240089,-500.0,0.0001207,2]
[406858313,1772242240099,-500.0,0.0001207,2]
[406858314,1772242240108,-500.0,0.0001207,2]
[406858315,1772242240117,-500.0,0.0001207,2]
[406858316,1772242240127,-500.0,0.0001207,2]
[406858317,1772242240137,-500.0,0.0001207,2]
[406858318,1772242240147,-500.0,0.0001207,2]
[406858319,1772242240157,-500.0,0.0001207,2]
[406858320,1772242240167,-500.0,0.0001207,2]
[406858321,1772242240177,-500.0,0.0001207,2]
[406858322,1772242240186,-500.0,0.0001207,2]
[406858323,1772242240196,-500.0,0.0001207,2]
[406858324,1772242240205,-500.0,0.0001207,2]
[406858325,1772242240215,-500.0,0.0001207,2]
[406858326,1772242240225,-500.0,0.0001207,2]
[406858327,1772242240235,-500.0,0.0001207,2]
[406858328,1772242240246,-500.0,0.0001207,2]
[406858329,1772242240255,-500.0,0.0001207,2]
[406858330,1772242240265,-500.0,0.0001207,2]
[406858331,1772242240276,-500.0,0.0001207,2]
[406858332,1772242240286,-500.0,0.0001207,2]
[406858333,1772242240297,-500.0,0.0001207,2]
[406858334,1772242240307,-500.0,0.0001207,2]
[406858335,1772242240317,-500.0,0.0001207,2]
[406858336,1772242240327,-500.0,0.0001207,2]
[406858337,1772242240337,-500.0,0.0001207,2]
[406858338,1772242240347,-500.0,0.0001207,2]
[406858339,1772242240360,-500.0,0.0001207,2]
[406858340,1772242240370,-500.0,0.0001207,2]
[406858341,1772242240380,-500.0,0.0001207,2]
[406858342,1772242240390,-800.0,0.0001207,2]
[406858343,1772242240400,-500.0,0.0001207,2]
[406858344,1772242240410,-800.0,0.0001207,2]
[406858345,1772242240420,-500.0,0.0001207,2]
[406858346,1772242240430,-800.0,0.0001207,2]
[406858347,1772242240440,-500.0,0.0001207,2]
[406858348,1772242240450,-800.0,0.0001207,2]
[406858349,1772242240460,-500.0,0.0001207,2]
[406858350,1772242240470,-800.0,0.0001207,2]
[406858351,1772242240479,-503.55340373,0.0001207,2]
[406858352,1772242240490,-800.0,0.0001207,2]
[406858353,1772242240499,-800.0,0.0001207,2]
[406858354,1772242240509,-800.0,0.0001207,2]
[406858355,1772242240519,-800.0,0.0001207,2]
[406858356,1772242240529,-800.0,0.0001207,2]
[406858357,1772242240539,-800.0,0.0001207,2]
[406858358,1772242240548,-500.0,0.0001207,2]
[406858359,1772242240558,-800.0,0.0001207,2]
[406858360,1772242240569,-800.0,0.0001207,2]
[406858361,1772242240578,-800.0,0.0001207,2]
[406858362,1772242240588,-500.0,0.0001207,2]
[406858363,1772242240597,-500.0,0.0001207,2]
[406858364,1772242240607,-500.0,0.0001207,2]
[406858365,1772242240617,-500.0,0.0001207,2]
[406858366,1772242240627,-500.0,0.0001207,2]
[406858367,1772242240636,-500.0,0.0001207,2]
[406858368,1772242240647,-152.3342834,0.0001207,2]
[406858369,1772242240657,-500.0,0.0001207,2]
[406858370,1772242240667,-500.0,0.0001207,2]
[406858371,1772242240677,-1000.0,0.00012102,2]
[406858372,1772242240687,-5532.0,0.000125,5]
[406858373,1772242240697,-926.91238002,0.00012635,2]
[406858374,1772242240707,-2258.0,0.00012957,2]